bitfinex-derivatives/quotes_ETHF0:USTF0_20250214
["timestamp","ask_amount","ask_price","bid_price","bid_amount"]
[1739505234267,1.1259,2718.5,2718.1,0.73568]
[1739505234466,2.3481,2718.5,2718.2,0.73565]
[1739505234677,2.3481,2718.5,2718.2,0.73567]
[1739505235168,0.5801,2718.5,2718.1,3.7828]
[1739505235374,0.5801,2718.5,2718.2,0.73567]
[1739505235674,1.77152293,2718.8,2718.4,0.7356]
[1739505236066,1.77152293,2718.8,2718.2,0.5388]
[1739505236269,1.77152293,2718.8,2718.3,41.53564]
[1739505236467,1.77152293,2718.8,2718.3,0.73564]
[1739505236878,1.77152293,2718.8,2718.2,0.5388]
[1739505237173,1.77152293,2718.8,2718.4,40.8]
[1739505237373,0.73554,2718.7,2718.4,40.8]
[1739505237676,1.77152293,2718.8,2718.4,40.8]
[1739505237972,1.77152293,2718.8,2718.2,0.5388]
[1739505237973,0.73555,2718.7,2718.2,0.5388]
[1739505238173,0.00552293,2718.8,2718.2,0.5388]
[1739505238369,0.00552293,2718.8,2718.7,0.73553]
[1739505238570,0.00552293,2718.8,2718.7,41.53553]
[1739505238874,0.00552293,2718.8,2718.7,40.8]
[1739505239473,0.00552293,2718.8,2718.5,3.94338]
[1739505239665,0.00552293,2718.8,2718.5,3.2078]
[1739505239866,0.00552293,2718.8,2718.4,0.73561]
[1739505240072,0.74104293,2718.8,2718.3,3.61455256]
[1739505240272,0.73555,2718.7,2718.3,2.87892256]
[1739505240471,0.73557,2718.6,2718.2,0.5388]
[1739505240672,0.5791,2718.6,2718.1,4.51848]
[1739505240878,0.7356,2718.5,2718.1,4.51848]
[1739505241472,0.5791,2718.6,2718.1,3.7828]
[1739505241679,0.7356,2718.5,2718.1,3.7828]
[1739505241975,0.5791,2718.6,2718.1,3.7828]
[1739505242179,0.73561,2718.5,2718.1,3.7828]
[1739505242570,0.5791,2718.6,2718.1,3.7828]
[1739505242976,1.762,2718.7,2718.1,3.7828]
[1739505243178,2.49754,2718.7,2718.3,0.73563]
[1739505243877,1.762,2718.7,2718.3,0.73563]
[1739505244085,1.762,2718.7,2718.2,0.5473]
[1739505244281,3.21332293,2718.8,2718.2,0.5473]
[1739505244480,0.00552293,2718.8,2718.7,0.73553]
[1739505244983,0.00552293,2718.8,2718.6,0.73555]
[1739505246879,0.00552293,2718.8,2718.6,0.73556]
[1739505247081,0.00552293,2718.8,2718.7,0.73553]
[1739505248087,0.00552293,2718.8,2718.6,0.73554]
[1739505248287,0.00552293,2718.8,2718.5,0.73557]
[1739505248589,0.74103293,2718.8,2718.5,0.73557]
[1739505248789,0.00552293,2718.8,2718.4,3.2078]
[1739505248991,0.74104293,2718.8,2718.4,3.9434]
[1739505249293,0.74104293,2718.8,2718.5,0.73558]
[1739505249680,0.00552293,2718.8,2718.5,0.73558]
[1739505250186,0.74103293,2718.8,2718.2,0.5473]
[1739505250385,0.74103293,2718.8,2718.5,0.73558]
[1739505250895,0.00552293,2718.8,2718.2,0.5473]
[1739505251391,0.00552293,2718.8,2718.7,0.73553]
[1739505252088,0.00552293,2718.8,2718.5,0.73557]
[1739505252387,0.00552293,2718.8,2718.4,3.2078]
[1739505252584,0.73555,2718.7,2718.3,0.73562]
[1739505252997,0.74104293,2718.8,2718.2,0.5473]
[1739505253287,0.00552293,2718.8,2718.4,0.7356]
[1739505253491,2.49004293,2718.8,2718.4,0.7356]
[1739505253691,1.75452293,2718.8,2718.4,0.7356]
[1739505253884,1.75452293,2718.8,2718.2,0.5473]
[1739505254191,1.75452293,2718.8,2718.5,0.73557]
[1739505254586,1.75452293,2718.8,2718.2,41.3473]
[1739505254788,1.75252293,2718.8,2718.6,0.73554]
[1739505255091,1.75252293,2718.8,2718.6,0.73556]
[1739505255795,1.75252293,2718.8,2718.4,3.2078]
[1739505256187,2.48804293,2718.8,2718.5,0.73558]
[1739505256387,0.73554,2718.7,2718.4,3.9434]
[1739505257196,1.75252293,2718.8,2718.4,3.2078]
[1739505257387,2.48804293,2718.8,2718.5,0.73558]
[1739505257591,2.48804293,2718.8,2718.4,3.9434]
[1739505258294,0.73554,2718.7,2718.4,3.9434]
[1739505258496,2.48804293,2718.8,2718.4,3.9434]
[1739505258692,2.48804293,2718.8,2718.5,0.73558]
[1739505259099,0.73555,2718.7,2718.4,3.94341]
[1739505259798,1.75252293,2718.8,2718.4,3.94341]
[1739505259799,0.00552293,2718.8,2718.7,0.73553]
[1739505260097,3.2078,2719.6,2718.7,3.7606]
[1739505260293,3.2078,2719.6,2719.1,3.2078]
[1739505260487,3.2078,2719.6,2719.2,41.3822]
[1739505260692,3.2078,2719.6,2719.3,1.30416]
[1739505261190,0.73532,2719.5,2719.3,0.5688]
[1739505261389,3.2078,2719.6,2719.3,0.5688]
[1739505261792,3.94311,2719.6,2719.3,0.5688]
[1739505262197,3.2078,2719.6,2719.3,1.30417]
[1739505262603,3.9431,2719.6,2719.3,0.5688]
[1739505262799,0.73534,2719.5,2719.3,0.5688]
[1739505263100,0.73534,2719.5,2719.2,0.00552293]
[1739505263290,0.5599,2719.4,2719.2,0.74091293]
[1739505263493,1.29525,2719.4,2719.2,0.00552293]
[1739505263691,1.87305,2719.4,2719.2,0.00552293]
[1739505264093,1.1377,2719.4,2719.2,0.00552293]
[1739505264801,1.87306,2719.4,2719.2,0.00552293]
[1739505265797,1.1377,2719.4,2719.2,0.00552293]
[1739505265997,3.94317,2719.3,2719.2,0.00552293]
[1739505266203,6.82209256,2719.3,2719.2,0.00552293]
[1739505266899,0.73553,2718.8,2718.4,0.7356]
[1739505267101,2.46753,2718.8,2718.4,0.7356]
[1739505267699,2.46753,2718.8,2718.0,3.2078]
[1739505267700,6.08672256,2718.7,2718.0,3.2078]
[1739505267904,6.08672256,2718.7,2717.8,41.9187]
[1739505267905,0.73561,2718.5,2717.9,0.73575]
[1739505268200,0.73562,2718.4,2717.9,0.73575]
[1739505268407,0.73562,2718.4,2717.8,41.9187]
[1739505268408,1.732,2718.3,2717.8,41.9187]
[1739505268596,1.732,2718.3,2717.9,0.73574]
[1739505268799,1.73752293,2718.3,2717.8,41.9187]
[1739505269001,1.73752293,2718.3,2717.8,42.65445]
[1739505269202,1.73752293,2718.3,2717.8,41.9187]
[1739505269500,3.9435,2718.1,2717.8,41.3687]
[1739505269806,3.9435,2718.1,2717.8,0.5687]
[1739505270096,3.2078,2718.1,2717.8,0.5687]
[1739505270299,3.2078,2718.1,2717.8,1.30448]
[1739505270703,3.2078,2718.1,2717.8,0.5687]
[1739505271203,0.5487,2718.2,2717.8,0.5687]
[1739505271591,0.5487,2718.2,2717.9,0.73574]
[1739505272201,0.5487,2718.2,2717.8,0.5687]
[1739505272600,1.28438,2718.2,2717.8,1.30447]
[1739505272797,0.7357,2718.1,2717.8,0.5687]
[1739505273394,0.5487,2718.2,2717.9,0.73575]
[1739505273603,0.5487,2718.2,2717.7,6.08672256]
[1739505273604,0.5424,2718.1,2717.7,6.08672256]
[1739505273803,0.5487,2718.2,2717.7,6.08672256]
[1739505274107,1.728,2718.1,2718.0,0.73572]
[1739505274404,0.00552293,2718.3,2717.8,0.5429]
[1739505274602,0.00552293,2718.3,2718.0,6.08672256]
[1739505274900,0.00552293,2718.3,2718.2,0.73567]
[1739505275506,1.729,2718.8,2718.7,0.73553]
[1739505278203,1.729,2718.8,2718.6,3.2078]
[1739505279509,1.729,2718.8,2718.6,3.94335]
[1739505280915,2.46451,2718.8,2718.6,3.2078]
[1739505281113,1.729,2718.8,2718.6,3.2078]
[1739505281409,1.729,2718.8,2718.6,3.94334]
[1739505281608,1.729,2718.8,2718.6,3.2078]
[1739505282010,1.729,2718.8,2718.7,0.73553]
[1739505282407,0.00552293,2719.0,2718.9,0.73548]
[1739505282916,0.00552293,2719.0,2718.9,3.94328]
[1739505283211,0.00552293,2719.0,2718.9,4.51108]
[1739505285706,0.00552293,2719.0,2718.9,0.5678]
[1739505286106,0.00552293,2719.0,2718.7,0.5697]
[1739505286306,0.00552293,2719.0,2718.7,1.30522]
[1739505286516,0.00552293,2719.0,2718.8,0.73549]
[1739505287111,0.00552293,2719.0,2718.8,0.73551]
[1739505287309,0.00552293,2719.0,2718.9,0.73548]
[1739505287814,0.00552293,2719.0,2718.7,0.5697]
[1739505288004,0.00552293,2719.0,2718.8,0.73549]
[1739505288211,0.00552293,2719.0,2718.9,0.73548]
[1739505289116,0.00552293,2719.0,2718.7,0.5697]
[1739505289415,0.00552293,2719.0,2718.7,1.30522]
[1739505290612,0.00552293,2719.0,2718.7,0.5697]
[1739505290812,0.00552293,2719.0,2718.8,0.73549]
[1739505291012,0.00552293,2719.0,2718.9,0.73548]
[1739505292923,0.00552293,2719.0,2718.7,0.5697]
[1739505293121,0.00552293,2719.0,2718.9,0.73548]
[1739505294413,0.00552293,2719.0,2718.7,0.5697]
[1739505294723,0.00552293,2719.0,2718.7,1.30522]
[1739505295221,0.74097293,2719.0,2718.7,1.30522]
[1739505295408,0.00552293,2719.0,2718.7,0.5697]
[1739505295611,0.00552293,2719.0,2718.8,0.7355]
[1739505295812,0.00552293,2719.0,2718.7,0.5697]
[1739505296014,0.00552293,2719.0,2718.8,0.73549]
[1739505296621,0.00552293,2719.0,2718.9,0.73548]
[1739505297424,0.00552293,2719.0,2718.8,0.73549]
[1739505298422,0.00552293,2719.0,2718.9,0.73548]
[1739505298726,0.00552293,2719.0,2718.8,0.7355]
[1739505299020,0.74099293,2719.0,2718.7,1.30523]
[1739505299215,0.74099293,2719.0,2718.7,0.73553]
[1739505299415,0.00552293,2719.0,2718.5,3.76682293]
[1739505299619,0.00552293,2719.0,2718.7,0.73552]
[1739505299620,0.74098293,2719.0,2718.7,0.73552]
[1739505300024,0.00552293,2719.0,2718.8,0.73549]
[1739505300220,0.74099293,2719.0,2718.5,3.76682293]
[1739505300422,0.00552293,2719.0,2718.5,3.76682293]
[1739505300623,0.00552293,2719.0,2718.9,0.73548]
[1739505300921,0.00552293,2719.0,2718.8,0.7355]
[1739505301114,0.56572293,2719.0,2718.5,3.76682293]
[1739505301324,0.56572293,2719.0,2718.8,0.73549]
[1739505302322,0.56572293,2719.0,2718.8,0.7355]
[1739505302617,0.56572293,2719.0,2718.9,0.73548]
[1739505302618,0.00552293,2719.0,2718.9,0.73548]
[1739505304217,0.00552293,2719.0,2718.8,0.73548]
[1739505304415,0.00552293,2719.0,2718.9,0.73548]
[1739505304616,0.00552293,2719.0,2718.5,6.64574549]
[1739505304827,0.00552293,2719.0,2718.9,0.73548]
[1739505305424,0.00552293,2719.0,2718.8,0.73549]
[1739505305923,0.00552293,2719.0,2718.5,6.64574549]
[1739505306527,0.00552293,2719.0,2718.8,6.08672256]
[1739505306863,0.00552293,2719.0,2718.9,1.31328]
[1739505307041,0.00552293,2719.0,2718.9,0.5778]
[1739505307242,0.00552293,2719.0,2718.8,3.94329]
[1739505307530,0.00552293,2719.0,2718.9,0.73548]
[1739505308830,0.00552293,2719.0,2718.8,3.2078]
[1739505309030,0.00552293,2719.0,2718.8,0.73549]
[1739505309329,0.00552293,2719.0,2718.6,0.5778]
[1739505309626,0.00552293,2719.0,2718.8,0.73551]
[1739505309929,0.00552293,2719.0,2718.9,0.73548]
[1739505320043,0.00552293,2719.0,2718.8,3.2078]
[1739505320340,0.00552293,2719.0,2718.9,0.73548]
[1739505333756,0.00552293,2719.0,2718.9,6.73548]
[1739505333757,2.93e-06,2719.0,2718.9,6.73548]
[1739505334159,0.5506,2719.8,2718.9,7.673]
[1739505334361,0.5506,2719.8,2719.7,0.73526]
[1739505335361,0.00552293,2720.0,2719.6,3.49763377]
[1739505335763,0.00552293,2720.0,2719.9,0.73521]
[1739505336157,0.00552293,2720.0,2719.9,3.94301]
[1739505336950,0.00552293,2720.0,2719.9,9.94301]
[1739505337259,2.93e-06,2720.0,2719.9,50.74301]
[1739505337454,1.7113,2720.7,2719.9,50.0078]
[1739505337660,1.7113,2720.7,2720.6,0.73502]
[1739505337859,6.08672256,2721.4,2720.6,0.73502]
[1739505337860,3.2078,2721.4,2720.6,2.87892256]
[1739505338065,1.1091,2721.3,2720.8,3.2078]
[1739505338658,1.11461268,2721.3,2720.8,3.21331268]
[1739505338858,1.11461268,2721.3,2721.1,0.73487]
[1739505339061,1.11461268,2721.3,2720.8,3.21331268]
[1739505339262,0.00551268,2721.3,2720.9,2.87892256]
[1739505339765,0.00551268,2721.3,2721.1,3.2078]
[1739505340067,0.00551268,2721.3,2721.2,0.73486]
[1739505340259,0.00551268,2721.3,2721.1,3.2078]
[1739505340457,0.00551268,2721.3,2721.2,0.73486]
[1739505341458,0.00551268,2721.3,2721.2,1.32186]
[1739505342271,0.00551268,2721.3,2721.2,4.20078256]
[1739505343168,0.00551268,2721.3,2721.2,4.73988256]
[1739505344371,0.01574854,2721.5,2721.4,0.7348]
[1739505344569,0.01574854,2721.5,2721.4,3.9426]
[1739505344874,0.01574854,2721.5,2721.4,44.77932798]
[1739505345069,3.2078,2722.6,2721.4,53.22340732]
[1739505345269,3.2078,2722.6,2722.2,3.94238]
[1739505345471,0.00551268,2722.3,2722.2,3.2078]
[1739505345773,0.00551268,2722.3,2722.2,3.94239]
[1739505345977,0.00551268,2722.3,2722.2,3.97911798]
[1739505347571,0.00551268,2722.3,2722.2,3.24452798]
[1739505347865,0.00551268,2722.3,2722.2,3.97911798]
[1739505349273,3.2078,2723.8,2722.3,1.8364]
[1739505349471,1.679,2723.7,2723.1,6.08672256]
[1739505349667,1.1351,2723.7,2723.1,6.08672256]
[1739505349862,1.1351,2723.7,2723.2,40.8]
[1739505350179,1.1351,2723.7,2723.1,6.08672256]
[1739505350180,0.73424,2723.5,2723.4,0.03672798]
[1739505350376,6.08672256,2723.5,2723.1,0.00551268]
[1739505350566,3.2078,2723.2,2722.5,2.87892256]
[1739505350763,0.73463,2722.1,2721.9,6.08672256]
[1739505350967,3.2078,2722.3,2721.9,6.08672256]
[1739505351266,0.73462,2722.1,2721.9,6.08672256]
[1739505351464,1.1351,2722.2,2721.6,6.08672256]
[1739505351669,1.685,2722.1,2721.6,6.08672256]
[1739505351869,2.82561268,2722.2,2721.6,3.21331268]
[1739505352069,2.82561268,2722.2,2721.6,6.09223524]
[1739505352468,1.14061268,2722.2,2721.9,6.08672256]
[1739505352775,0.00551268,2722.2,2722.1,0.73462]
[1739505353372,0.00551268,2722.2,2721.9,6.08672256]
[1739505353979,0.00551268,2722.2,2721.9,3.2078]
[1739505354173,3.21331268,2722.2,2721.6,2.88443524]
[1739505354380,1.688,2722.1,2721.6,0.00551268]
[1739505354578,2.2382,2722.1,2721.6,0.00551268]
[1739505354882,0.73471,2721.8,2721.6,0.00551268]
[1739505355075,1.1728,2721.7,2721.6,0.00551268]
[1739505356175,1.90752,2721.7,2721.6,0.00551268]
[1739505356368,1.1728,2721.7,2721.1,3.2078]
[1739505356573,2.42576,2721.6,2721.1,3.2078]
[1739505357377,1.691,2721.6,2721.1,3.2078]
[1739505357573,1.691,2721.6,2721.1,3.21331268]
[1739505357773,1.691,2721.6,2721.2,0.73484]
[1739505357975,2.42577,2721.6,2721.1,3.21331268]
[1739505358173,0.73481,2721.4,2721.1,3.21331268]
[1739505358380,0.73482,2721.4,2721.1,3.21331268]
[1739505358684,0.73481,2721.4,2721.1,3.21331268]
[1739505359479,0.73482,2721.4,2721.1,0.00551268]
[1739505359681,0.5581,2721.3,2721.1,0.00551268]
[1739505360380,0.73486,2721.2,2721.1,0.00551268]
[1739505361579,3.7659,2721.3,2721.1,0.00551268]
[1739505362081,3.2078,2721.3,2721.1,0.00551268]
[1739505362689,3.94265,2721.3,2721.1,0.00551268]
[1739505362984,0.73486,2721.2,2721.1,0.00551268]
[1739505363187,1.29356,2721.2,2721.1,0.00551268]
[1739505363488,0.5587,2721.2,2721.1,0.00551268]
[1739505364380,0.5587,2721.2,2720.5,3.2078]
[1739505364580,1.1407,2721.1,2720.5,3.2078]
[1739505364980,0.73493,2721.0,2720.5,44.0078]
[1739505365182,1.1407,2721.1,2720.5,44.0078]
[1739505365382,0.73499,2720.8,2720.5,3.2078]
[1739505365684,1.698,2720.8,2720.5,3.21331268]
[1739505365991,0.73501,2720.7,2720.5,3.21331268]
[1739505366180,1.698,2720.8,2720.5,0.00551268]
[1739505366381,1.32562,2720.6,2720.5,0.00551268]
[1739505367280,1.32562,2720.6,2719.5,3.2078]
[1739505367281,13.39344001,2720.6,2719.5,3.2078]
[1739505367484,3.2078,2720.1,2719.5,3.2078]
[1739505367692,0.73526,2719.8,2719.5,3.2078]
[1739505367986,0.73529,2719.6,2719.1,3.2078]
[1739505368209,6.40424001,2720.0,2719.1,3.2078]
[1739505368389,6.40424001,2720.0,2719.1,3.21331268]
[1739505368577,0.73531,2719.6,2719.1,3.21331268]
[1739505368784,0.73532,2719.5,2719.1,3.21331268]
[1739505368985,3.2078,2719.8,2719.1,3.21331268]
[1739505369187,0.73533,2719.5,2719.1,3.21331268]
[1739505369490,1.697,2719.4,2719.1,3.21331268]
[1739505369681,1.697,2719.4,2719.1,0.00551268]
[1739505369884,3.9432,2719.2,2719.1,0.00551268]
[1739505370485,1.6748,2719.3,2719.1,0.00551268]
[1739505370695,1.701,2719.2,2719.1,0.00551268]
[1739505370892,1.701,2719.2,2719.1,0.74094268]
[1739505371191,1.701,2719.2,2719.1,3.94874268]
[1739505371584,0.00551268,2719.4,2719.2,0.73538]
[1739505371787,3.21331268,2719.4,2719.1,40.80551268]
[1739505371992,0.73539,2719.3,2719.1,0.00551268]
[1739505372292,3.21331268,2719.4,2719.1,0.00551268]
[1739505372987,0.00551268,2719.4,2719.1,0.00551268]
[1739505373290,1.712,2719.3,2719.1,0.00551268]
[1739505373585,0.7354,2719.2,2719.1,0.00551268]
[1739505373990,0.7354,2719.2,2717.8,3.2078]
[1739505373991,0.73565,2718.3,2717.8,3.2078]
[1739505374203,3.2078,2718.9,2718.2,3.2078]
[1739505374396,1.1006,2718.8,2718.2,3.2078]
[1739505374589,1.731,2718.7,2718.2,3.2078]
[1739505374786,3.2078,2718.6,2717.9,3.2078]
[1739505375094,0.73562,2718.4,2718.0,40.8]
[1739505375392,0.73559,2718.5,2717.9,3.2078]
[1739505375689,2.46656,2718.7,2718.1,0.73569]
[1739505376279,0.73558,2718.6,2718.0,1.27462]
[1739505376480,0.73558,2718.6,2718.1,0.7357]
[1739505376688,3.2078,2718.3,2717.9,40.8]
[1739505376890,3.59504001,2718.4,2717.9,0.73575]
[1739505377084,1.735,2718.6,2718.3,3.2078]
[1739505377687,1.735,2718.6,2718.0,0.73571]
[1739505377883,1.735,2718.6,2718.0,3.2078]
[1739505378287,2.47057,2718.6,2718.0,3.2078]
[1739505378487,0.73559,2718.5,2718.0,3.2078]
[1739505379394,1.735,2718.6,2718.0,3.2078]
[1739505379594,0.73561,2718.5,2718.0,3.2078]
[1739505379791,3.94341,2718.5,2718.0,3.2078]
[1739505379994,3.2078,2718.5,2718.0,3.2078]
[1739505380490,3.2078,2718.5,2718.0,3.94352]
[1739505380691,3.2078,2718.5,2718.0,3.2078]
[1739505381087,0.73567,2718.2,2718.0,3.2078]
[1739505381698,0.73564,2718.3,2718.1,40.8]
[1739505381886,3.2078,2718.5,2718.1,40.8]
[1739505382191,0.73563,2718.4,2718.1,40.8]
[1739505382390,3.2078,2718.5,2718.1,40.8]
[1739505382585,0.73563,2718.4,2718.1,40.8]
[1739505382789,3.2078,2718.5,2718.1,40.8]
[1739505383090,3.9434,2718.5,2718.1,40.8]
[1739505383593,0.73563,2718.4,2718.1,40.8]
[1739505383890,1.735,2718.5,2718.1,40.8]
[1739505384096,1.735,2718.5,2718.3,3.2078]
[1739505384291,0.00551268,2718.7,2718.3,3.94344]
[1739505384491,0.00551268,2718.7,2718.3,3.2078]
[1739505384492,1.73951268,2718.7,2718.3,3.2078]
[1739505384693,1.73951268,2718.7,2718.5,0.73558]
[1739505384891,0.00551268,2718.7,2718.4,1.0851]
[1739505385091,0.00551268,2718.7,2718.6,3.94336]
[1739505386096,4.9428,2719.5,2718.6,3.94336]
[1739505386097,1.734,2719.6,2719.3,0.73537]
[1739505386299,1.734,2719.6,2719.2,3.94318]
[1739505386795,2.47025,2719.8,2719.3,0.73537]
[1739505387096,1.735,2719.8,2719.5,3.2078]
[1739505387296,0.00551268,2719.8,2719.5,3.2078]
[1739505387793,0.00551268,2719.8,2719.5,3.9431]
[1739505388192,0.00551268,2719.8,2719.5,3.94312]
[1739505388390,0.00551268,2719.8,2719.5,3.2078]
[1739505388995,0.00551268,2719.8,2719.5,3.9431]
[1739505389196,0.00551268,2719.8,2719.5,3.2078]
[1739505389404,3.2078,2720.6,2719.5,12.80284001]
[1739505389599,3.2078,2720.9,2720.4,3.2078]
[1739505390298,0.5397,2721.3,2720.7,3.94279]
[1739505390488,4.9518,2721.4,2721.0,3.2078]
[1739505390489,1.744,2721.4,2721.0,3.2078]
[1739505390891,1.744,2721.4,2721.3,3.2078]
[1739505391091,0.00551268,2721.5,2721.3,3.2078]
[1739505391998,0.00551268,2721.5,2721.3,3.94262]
[1739505392802,1.744,2722.1,2721.7,0.7347]
[1739505393097,3.94233,2722.5,2721.9,3.2078]
[1739505393098,3.2078,2722.5,2721.9,3.2078]
[1739505393398,1.744,2722.7,2722.3,3.2078]
[1739505394093,3.21331268,2722.8,2722.3,3.2078]
[1739505394301,0.00551268,2722.8,2722.3,3.2078]
[1739505394605,0.00551268,2722.8,2722.6,3.2078]
[1739505394995,0.00551268,2722.8,2722.7,0.73446]
[1739505396005,0.00551268,2722.8,2722.6,3.2078]
[1739505396995,0.00551268,2722.8,2722.4,41.9174]
[1739505396996,0.00551268,2722.8,2722.4,1.1174]
[1739505397298,0.73997268,2722.8,2722.4,0.5408]
[1739505397517,0.00551268,2722.8,2722.4,0.5408]
[1739505397893,0.73995268,2722.8,2722.4,0.5408]
[1739505398103,0.73448,2722.7,2722.4,0.5408]
[1739505398402,0.73452,2722.5,2722.3,0.00551268]
[1739505398795,0.73451,2722.6,2722.3,0.00551268]
[1739505398995,3.2078,2722.7,2722.3,0.00551268]
[1739505399191,0.73454,2722.4,2722.3,0.00551268]
[1739505399594,3.94234,2722.4,2722.3,0.00551268]
[1739505400398,0.73454,2722.4,2722.3,0.00551268]
[1739505400897,3.94234,2722.4,2722.3,0.00551268]
[1739505401801,7.53738001,2722.4,2722.3,0.00551268]
[1739505402596,0.73457,2722.3,2721.4,3.2078]
[1739505402811,3.2078,2722.0,2721.5,0.73477]
[1739505403001,3.2078,2722.0,2721.5,0.73478]
[1739505403201,3.06041,2722.2,2721.7,3.2078]
[1739505403798,2.3258,2722.2,2721.7,3.21331268]
[1739505403998,2.3258,2722.2,2721.7,3.94802268]
[1739505404608,3.06041,2722.2,2721.7,3.94802268]
[1739505405008,2.3258,2722.2,2721.7,3.21331268]
[1739505405200,3.2078,2722.0,2721.7,0.00551268]
[1739505405400,0.5798,2722.2,2721.7,3.21331268]
[1739505405709,2.48164,2722.1,2721.7,3.21331268]
[1739505406208,1.747,2722.1,2721.7,3.21331268]
[1739505406404,0.73467,2722.0,2721.7,0.00551268]
[1739505406709,1.747,2722.1,2721.7,3.21331268]
[1739505406901,1.31441,2722.2,2721.8,0.7347]
[1739505407107,3.06341,2722.2,2721.7,3.21331268]
[1739505407307,1.31441,2722.2,2721.7,3.94803268]
[1739505407513,3.06341,2722.2,2721.7,3.94803268]
[1739505408203,2.3288,2722.2,2721.7,3.21331268]
[1739505408407,0.73468,2721.9,2721.7,3.21331268]
[1739505408703,0.73466,2722.0,2721.7,3.21331268]
[1739505408904,0.73469,2721.9,2721.7,3.21331268]
[1739505409710,2.3288,2722.2,2721.7,3.21331268]
[1739505410405,0.73469,2721.9,2721.7,3.21331268]
[1739505410710,2.3288,2722.2,2721.7,3.21331268]
[1739505410711,0.7347,2721.8,2721.7,3.21331268]
[1739505410910,0.7347,2721.8,2721.7,0.00551268]
[1739505412109,1.742,2722.0,2721.7,0.00551268]
[1739505412722,2.47665,2722.0,2721.7,0.00551268]
[1739505412906,0.7347,2721.9,2721.7,0.00551268]
[1739505413107,1.742,2722.0,2721.7,0.74022268]
[1739505413302,0.7347,2721.8,2721.7,0.00551268]
[1739505414009,0.73469,2721.9,2721.7,0.00551268]
[1739505414215,2.47665,2722.0,2721.7,0.74023268]
[1739505414413,2.47666,2722.0,2721.7,0.00551268]
[1739505414910,1.742,2722.0,2721.7,0.74024268]
[1739505415415,1.742,2722.0,2721.7,0.00551268]
[1739505415615,0.7347,2721.8,2721.7,0.00551268]
[1739505415810,1.742,2722.0,2721.7,0.00551268]
[1739505416010,2.47665,2722.0,2721.7,0.00551268]
[1739505416509,0.73469,2721.9,2721.7,0.00551268]
[1739505417008,1.742,2722.0,2721.7,0.00551268]
[1739505417311,0.7347,2721.8,2721.7,0.00551268]
[1739505418217,4.32974001,2721.8,2721.7,0.00551268]
[1739505418412,1.83697,2721.5,2720.7,3.2078]
[1739505418609,0.73494,2721.0,2720.9,40.8]
[1739505418813,5.5353,2721.4,2720.7,3.2078]
[1739505418814,0.73495,2720.9,2720.7,3.2078]
[1739505419208,6.6907,2721.4,2720.8,40.8]
[1739505419507,6.69621268,2721.4,2720.8,0.00551268]
[1739505419715,0.73493,2721.0,2720.8,0.00551268]
[1739505419909,6.69621268,2721.4,2720.8,0.00551268]
[1739505420209,0.73495,2720.9,2720.8,0.00551268]
[1739505420411,2.48295,2720.9,2720.8,0.00551268]
[1739505421619,11.34304001,2720.9,2719.8,3.2078]
[1739505421922,3.2078,2720.3,2719.5,3.2078]
[1739505422111,2.48515,2720.2,2719.5,3.2078]
[1739505422311,1.75,2720.2,2719.6,0.73528]
[1739505422511,0.73518,2720.1,2719.5,3.94311]
[1739505422817,1.75,2720.2,2719.5,3.2078]
[1739505423213,1.75,2720.2,2719.8,0.73524]
[1739505423405,1.75,2720.2,2719.5,3.2078]
[1739505423615,2.48515,2720.2,2719.6,0.73529]
[1739505423815,1.75,2720.2,2719.5,3.2078]
[1739505424007,4.9299,2720.6,2719.9,3.2078]
[1739505424215,2.48206,2720.5,2719.9,3.943]
[1739505424517,1.747,2720.5,2719.9,3.2078]
[1739505424713,0.73508,2720.4,2719.9,3.2078]
[1739505424921,1.747,2720.5,2719.6,3.2078]
[1739505425120,0.73516,2720.2,2719.6,3.94309]
[1739505425510,1.747,2720.5,2719.6,3.2078]
[1739505425718,0.73522,2719.9,2719.6,3.2078]
[1739505425924,1.744,2720.0,2719.6,3.2078]
[1739505426122,0.00551268,2720.0,2719.9,3.2078]
[1739505426317,0.00551268,2720.0,2719.5,3.2078]
[1739505426318,1.74951268,2720.0,2719.5,3.2078]
[1739505426724,0.73524,2719.8,2719.5,3.2078]
[1739505426928,1.74951268,2720.0,2719.5,3.2078]
[1739505427326,0.73523,2719.9,2719.5,3.2078]
[1739505427625,0.73526,2719.8,2719.5,3.2078]
[1739505428122,0.73535,2719.4,2719.3,0.5369]
[1739505428319,3.2078,2719.7,2719.1,3.2078]
[1739505428624,0.73539,2719.3,2719.1,3.2078]
[1739505428829,3.2078,2719.3,2719.0,41.3898]
[1739505429019,3.2078,2719.3,2719.0,40.8]
[1739505429218,0.73543,2719.1,2718.7,4.51634]
[1739505429520,3.2078,2719.3,2718.7,3.7808]
[1739505429825,0.73542,2719.2,2718.8,40.8]
[1739505430019,3.2078,2719.3,2718.8,40.8]
[1739505430224,1.743,2719.4,2718.0,3.2078]
[1739505430225,3.2078,2719.0,2718.0,3.2078]
[1739505430423,0.73554,2718.7,2718.3,3.2078]
[1739505430626,5.34404001,2718.9,2718.3,3.2078]
[1739505430821,0.73555,2718.7,2718.3,3.2078]
[1739505431022,0.73556,2718.7,2718.3,3.2078]
[1739505431325,0.00551268,2718.8,2718.6,3.2078]
[1739505431528,0.00551268,2718.8,2718.7,0.73554]
[1739505431720,0.00551268,2718.8,2718.7,42.61574]
[1739505432524,5.34304001,2719.8,2718.7,41.8802]
[1739505432719,1.748,2719.8,2719.2,3.2078]
[1739505433021,2.48325,2719.8,2719.2,3.94318]
[1739505433225,1.748,2719.8,2719.3,0.73537]
[1739505433726,2.48875268,2719.8,2719.3,0.00551268]
[1739505434315,1.75351268,2719.8,2719.3,0.00551268]
[1739505434523,0.73527,2719.7,2719.3,0.00551268]
[1739505434825,1.75351268,2719.8,2719.3,0.00551268]
[1739505434826,2.48877268,2719.8,2719.3,0.00551268]
[1739505435222,0.7353,2719.6,2719.3,0.00551268]